[Event "Titled Tuesday Blitz July 6 2021"]
[White "Gelman, Alexander"]
[Black "Onyshchuk, Volodymyr"]
[WhiteFideId "4118316"]
[BlackFideId "14114038"]
[WhiteElo "2375"]
[BlackElo "2603"]
[Result "1/2-1/2"]
[Round "05"]
[TimeControl "180+1"]
[Date "2021.07.06"]
[WhiteClock "0:00:07"]
[BlackClock "0:00:04"]

1. d4 {[%clk 0:03:00]}  d6 {[%clk 0:02:59]} 2. Nc3 {[%clk 0:03:00]}  g6 {[%clk 0:02:59]} 3. e4 {[%clk 0:03:01]}  Bg7 {[%clk 0:02:59]} 4. f4 {[%clk 0:03:01]}  Nf6 {[%clk 0:02:59]} 5. Nf3 {[%clk 0:03:02]}  O-O {[%clk 0:02:59]} 6. e5 {[%clk 0:03:02]}  dxe5 {[%clk 0:02:59]} 7. fxe5 {[%clk 0:03:03]}  Nd5 {[%clk 0:03:00]} 8. h4 {[%clk 0:03:03]}  c5 {[%clk 0:02:53]} 9. h5 {[%clk 0:03:03]}  cxd4 {[%clk 0:02:52]} 10. Qxd4 {[%clk 0:03:01]}  Nxc3 {[%clk 0:02:41]} 11. Qxc3 {[%clk 0:03:02]}  Bf5 {[%clk 0:02:34]} 12. hxg6 {[%clk 0:02:45]}  Bxg6 {[%clk 0:02:34]} 13. Bh6 {[%clk 0:02:34]}  Bxh6 {[%clk 0:02:30]} 14. Rxh6 {[%clk 0:02:35]}  Nc6 {[%clk 0:02:28]} 15. Bd3 {[%clk 0:02:28]}  Qd5 {[%clk 0:02:14]} 16. O-O-O {[%clk 0:01:47]}  Qxa2 {[%clk 0:01:12]} 17. Bxg6 {[%clk 0:01:36]}  fxg6 {[%clk 0:01:09]} 18. b3 {[%clk 0:01:27]}  Rac8 {[%clk 0:00:23]} 19. Qc4+ {[%clk 0:00:59]}  Rf7 {[%clk 0:00:22]} 20. Rxh7 {[%clk 0:00:24]}  e6 {[%clk 0:00:11]} 21. Qxe6 {[%clk 0:00:15]}  Qa1+ {[%clk 0:00:10]} 22. Kd2 {[%clk 0:00:16]}  Rd8+ {[%clk 0:00:11]} 23. Ke3 {[%clk 0:00:15]}  Qc3+ {[%clk 0:00:09]} 24. Rd3 {[%clk 0:00:16]}  Rxd3+ {[%clk 0:00:07]} 25. cxd3 {[%clk 0:00:16]}  Qc1+ {[%clk 0:00:07]} 26. Kf2 {[%clk 0:00:07]}  Qc5+ {[%clk 0:00:03]} 27. Kg3 {[%clk 0:00:06]}  Qe7 {[%clk 0:00:03]} 28. Qxf7+ {[%clk 0:00:05]}  Qxf7 {[%clk 0:00:03]} 29. Rxf7 {[%clk 0:00:05]}  Kxf7 {[%clk 0:00:04]} 30. d4 {[%clk 0:00:06]}  Ke6 {[%clk 0:00:04]} 31. Kf4 {[%clk 0:00:06]}  Kd5 {[%clk 0:00:03]} 32. Ke3 {[%clk 0:00:05]}  a5 {[%clk 0:00:03]} 33. Kd3 {[%clk 0:00:03]}  b5 {[%clk 0:00:04]} 34. Kc3 {[%clk 0:00:02]}  a4 {[%clk 0:00:04]} 35. bxa4 {[%clk 0:00:03]}  bxa4 {[%clk 0:00:04]} 36. Kd3 {[%clk 0:00:03]}  g5 {[%clk 0:00:04]} 37. Kc3 {[%clk 0:00:04]}  g4 {[%clk 0:00:03]} 38. Nd2 {[%clk 0:00:04]}  Nxd4 {[%clk 0:00:03]} 39. e6 {[%clk 0:00:04]}  Nxe6 {[%clk 0:00:03]} 40. Nc4 {[%clk 0:00:05]}  Nc5 {[%clk 0:00:03]} 41. Ne3+ {[%clk 0:00:05]}  Ke4 {[%clk 0:00:03]} 42. Nxg4 {[%clk 0:00:06]}  Nb3 {[%clk 0:00:03]} 43. Kb4 {[%clk 0:00:06]}  Kf4 {[%clk 0:00:03]} 44. Kxa4 {[%clk 0:00:06]}  Kxg4 {[%clk 0:00:03]} 45. Kxb3 {[%clk 0:00:06]}  Kg3 {[%clk 0:00:04]} 46. Kc4 {[%clk 0:00:07]}  Kxg2 {[%clk 0:00:04]} 1/2-1/2


[Site "https://www.chess.com"]

[Event "Titled Tuesday Blitz July 6 2021"]
[White "Gracia Alvarez, Gerardo Antonio"]
[Black "Vykouk, Jan"]
[WhiteFideId "5109124"]
[BlackFideId "349658"]
[WhiteElo "2148"]
[BlackElo "2387"]
[Result "0-1"]
[Round "05"]
[TimeControl "180+1"]
[Date "2021.07.06"]
[WhiteClock "0:00:15"]
[BlackClock "0:00:48"]

1. e4 {[%clk 0:03:00]}  c5 {[%clk 0:02:59]} 2. Nf3 {[%clk 0:03:00]}  d6 {[%clk 0:03:00]} 3. d4 {[%clk 0:03:00]}  cxd4 {[%clk 0:03:01]} 4. Nxd4 {[%clk 0:03:01]}  Nf6 {[%clk 0:03:01]} 5. Nc3 {[%clk 0:03:01]}  a6 {[%clk 0:03:02]} 6. Be2 {[%clk 0:03:02]}  e5 {[%clk 0:03:02]} 7. Nf3 {[%clk 0:03:02]}  Qc7 {[%clk 0:03:01]} 8. Bg5 {[%clk 0:02:55]}  Nbd7 {[%clk 0:03:01]} 9. O-O {[%clk 0:02:55]}  h6 {[%clk 0:03:01]} 10. Be3 {[%clk 0:02:50]}  b5 {[%clk 0:02:59]} 11. Rc1 {[%clk 0:02:09]}  Be7 {[%clk 0:02:46]} 12. Nd5 {[%clk 0:02:03]}  Nxd5 {[%clk 0:02:45]} 13. exd5 {[%clk 0:02:04]}  O-O {[%clk 0:02:42]} 14. b3 {[%clk 0:02:04]}  f5 {[%clk 0:02:36]} 15. c4 {[%clk 0:02:03]}  b4 {[%clk 0:02:32]} 16. c5 {[%clk 0:01:50]}  Nxc5 {[%clk 0:02:30]} 17. Nxe5 {[%clk 0:01:41]}  dxe5 {[%clk 0:02:03]} 18. d6 {[%clk 0:01:17]}  Qxd6 {[%clk 0:01:43]} 19. Bxc5 {[%clk 0:01:17]}  Qxd1 {[%clk 0:01:42]} 20. Rfxd1 {[%clk 0:01:18]}  Bxc5 {[%clk 0:01:42]} 21. Rxc5 {[%clk 0:01:18]}  e4 {[%clk 0:01:41]} 22. Bc4+ {[%clk 0:01:11]}  Kh8 {[%clk 0:01:41]} 23. Rc7 {[%clk 0:01:11]}  a5 {[%clk 0:01:37]} 24. Rc1 {[%clk 0:01:03]}  Ba6 {[%clk 0:01:29]} 25. Bd5 {[%clk 0:01:03]}  Rac8 {[%clk 0:01:27]} 26. Be6 {[%clk 0:01:00]}  Rxc7 {[%clk 0:01:26]} 27. Rxc7 {[%clk 0:01:01]}  Bd3 {[%clk 0:01:17]} 28. Ra7 {[%clk 0:00:53]}  f4 {[%clk 0:01:14]} 29. f3 {[%clk 0:00:40]}  e3 {[%clk 0:01:12]} 30. Rxa5 {[%clk 0:00:35]}  Re8 {[%clk 0:00:59]} 31. Re5 {[%clk 0:00:31]}  Bg6 {[%clk 0:00:56]} 32. g3 {[%clk 0:00:25]}  Bf7 {[%clk 0:00:55]} 33. gxf4 {[%clk 0:00:24]}  Rxe6 {[%clk 0:00:54]} 34. Kf1 {[%clk 0:00:21]}  Rxe5 {[%clk 0:00:51]} 35. fxe5 {[%clk 0:00:22]}  Bg6 {[%clk 0:00:51]} 36. Ke2 {[%clk 0:00:20]}  Bb1 {[%clk 0:00:51]} 37. Kxe3 {[%clk 0:00:17]}  Bxa2 {[%clk 0:00:51]} 38. Kd4 {[%clk 0:00:17]}  Bxb3 {[%clk 0:00:51]} 39. Kc5 {[%clk 0:00:18]}  Bd1 {[%clk 0:00:51]} 40. Kxb4 {[%clk 0:00:18]}  Bxf3 {[%clk 0:00:51]} 41. Kc5 {[%clk 0:00:18]}  Kg8 {[%clk 0:00:51]} 42. Kd6 {[%clk 0:00:18]}  Kf8 {[%clk 0:00:51]} 43. e6 {[%clk 0:00:16]}  Ke8 {[%clk 0:00:50]} 44. h4 {[%clk 0:00:15]}  g5 {[%clk 0:00:48]} 0-1


[Site "https://www.chess.com"]

[Event "Titled Tuesday Blitz July 6 2021"]
[White "Harshavardhan G B"]
[Black "Ben Artzi, Ido"]
[WhiteFideId "25059009"]
[BlackFideId "2810913"]
[WhiteElo "1825"]
[BlackElo "2244"]
[Result "1-0"]
[Round "05"]
[TimeControl "180+1"]
[Date "2021.07.06"]
[WhiteClock "0:01:41"]
[BlackClock "0:01:32"]

1. e4 {[%clk 0:03:00]}  c6 {[%clk 0:02:56]} 2. d4 {[%clk 0:02:57]}  d5 {[%clk 0:02:56]} 3. exd5 {[%clk 0:02:57]}  cxd5 {[%clk 0:02:56]} 4. c4 {[%clk 0:02:58]}  Nf6 {[%clk 0:02:54]} 5. Nc3 {[%clk 0:02:57]}  e6 {[%clk 0:02:54]} 6. Nf3 {[%clk 0:02:56]}  Be7 {[%clk 0:02:53]} 7. c5 {[%clk 0:02:56]}  b6 {[%clk 0:02:51]} 8. Bb5+ {[%clk 0:02:54]}  Bd7 {[%clk 0:02:50]} 9. Bxd7+ {[%clk 0:02:51]}  Qxd7 {[%clk 0:02:49]} 10. Ne5 {[%clk 0:02:48]}  Qc8 {[%clk 0:02:45]} 11. Qa4+ {[%clk 0:02:27]}  Nbd7 {[%clk 0:02:45]} 12. c6 {[%clk 0:02:23]}  Nxe5 {[%clk 0:02:42]} 13. dxe5 {[%clk 0:02:24]}  Ng8 {[%clk 0:02:25]} 14. Be3 {[%clk 0:02:04]}  Qc7 {[%clk 0:02:12]} 15. Nb5 {[%clk 0:01:58]}  Qxc6 {[%clk 0:02:06]} 16. Rc1 {[%clk 0:01:56]}  Bc5 {[%clk 0:02:00]} 17. b4 {[%clk 0:01:49]}  Kd7 {[%clk 0:01:32]} 18. bxc5 {[%clk 0:01:42]}  a6 {[%clk 0:01:32]} 19. Nc3 {[%clk 0:01:41]} 1-0


[Site "https://www.chess.com"]

[Event "Titled Tuesday Blitz July 6 2021"]
[White "Howell, David W L"]
[Black "Cunjalo, Faris"]
[WhiteFideId "410608"]
[BlackFideId "14410710"]
[WhiteElo "2643"]
[BlackElo "2234"]
[Result "1/2-1/2"]
[Round "05"]
[TimeControl "180+1"]
[Date "2021.07.06"]
[WhiteClock "0:00:43"]
[BlackClock "0:00:15"]

1. e4 {[%clk 0:03:00]}  e5 {[%clk 0:02:57]} 2. Nc3 {[%clk 0:02:58]}  Nf6 {[%clk 0:02:54]} 3. d4 {[%clk 0:02:49]}  exd4 {[%clk 0:02:51]} 4. Qxd4 {[%clk 0:02:50]}  Nc6 {[%clk 0:02:51]} 5. Qc4 {[%clk 0:02:50]}  Bb4 {[%clk 0:02:02]} 6. Bd2 {[%clk 0:02:49]}  O-O {[%clk 0:01:42]} 7. O-O-O {[%clk 0:02:49]}  Re8 {[%clk 0:01:37]} 8. f3 {[%clk 0:02:46]}  d6 {[%clk 0:01:35]} 9. Kb1 {[%clk 0:02:29]}  Be6 {[%clk 0:01:33]} 10. Qd3 {[%clk 0:02:18]}  d5 {[%clk 0:01:19]} 11. exd5 {[%clk 0:01:59]}  Nxd5 {[%clk 0:01:12]} 12. Nxd5 {[%clk 0:01:56]}  Bxd5 {[%clk 0:01:06]} 13. Ne2 {[%clk 0:01:29]}  Bxd2 {[%clk 0:00:39]} 14. Qxd2 {[%clk 0:01:30]}  Bc4 {[%clk 0:00:39]} 15. b3 {[%clk 0:01:02]}  Bxe2 {[%clk 0:00:27]} 16. Bxe2 {[%clk 0:01:02]}  Qf6 {[%clk 0:00:24]} 17. Bb5 {[%clk 0:01:01]}  a6 {[%clk 0:00:23]} 18. Bxc6 {[%clk 0:01:01]}  Qxc6 {[%clk 0:00:24]} 19. Rhe1 {[%clk 0:01:01]}  h6 {[%clk 0:00:23]} 20. Rxe8+ {[%clk 0:01:00]}  Rxe8 {[%clk 0:00:23]} 21. Re1 {[%clk 0:01:00]}  Rxe1+ {[%clk 0:00:21]} 22. Qxe1 {[%clk 0:01:01]}  Kf8 {[%clk 0:00:19]} 23. a4 {[%clk 0:00:58]}  Qd6 {[%clk 0:00:18]} 24. g3 {[%clk 0:00:56]}  b6 {[%clk 0:00:17]} 25. Qe4 {[%clk 0:00:53]}  a5 {[%clk 0:00:17]} 26. Kb2 {[%clk 0:00:52]}  g6 {[%clk 0:00:15]} 27. f4 {[%clk 0:00:43]} 1/2-1/2


[Site "https://www.chess.com"]

[Event "Titled Tuesday Blitz July 6 2021"]
[White "Jobava, Baadur"]
[Black "Viana Da Costa, Fernando"]
[WhiteFideId "13601520"]
[BlackFideId "2111900"]
[WhiteElo "2748"]
[BlackElo "2247"]
[Result "1-0"]
[Round "05"]
[TimeControl "180+1"]
[Date "2021.07.06"]
[WhiteClock "0:00:38"]
[BlackClock "0:00:12"]

1. d4 {[%clk 0:03:00]}  Nf6 {[%clk 0:02:59]} 2. Nc3 {[%clk 0:03:01]}  d5 {[%clk 0:02:59]} 3. Bf4 {[%clk 0:03:02]}  c6 {[%clk 0:02:57]} 4. e3 {[%clk 0:03:00]}  Bf5 {[%clk 0:02:56]} 5. f3 {[%clk 0:03:00]}  Qb6 {[%clk 0:02:47]} 6. Rb1 {[%clk 0:02:56]}  h6 {[%clk 0:02:44]} 7. Bd3 {[%clk 0:02:55]}  Bxd3 {[%clk 0:02:43]} 8. cxd3 {[%clk 0:02:56]}  Nbd7 {[%clk 0:02:43]} 9. Nge2 {[%clk 0:02:56]}  e6 {[%clk 0:02:39]} 10. Bg3 {[%clk 0:02:54]}  Be7 {[%clk 0:02:31]} 11. O-O {[%clk 0:02:54]}  O-O {[%clk 0:02:30]} 12. b4 {[%clk 0:02:54]}  a5 {[%clk 0:02:27]} 13. b5 {[%clk 0:02:53]}  c5 {[%clk 0:02:26]} 14. Na4 {[%clk 0:02:52]}  Qd8 {[%clk 0:02:25]} 15. b6 {[%clk 0:02:50]}  Rc8 {[%clk 0:01:28]} 16. Bc7 {[%clk 0:02:42]}  Qe8 {[%clk 0:01:28]} 17. dxc5 {[%clk 0:02:33]}  Nxc5 {[%clk 0:01:24]} 18. Nxc5 {[%clk 0:02:34]}  Bxc5 {[%clk 0:01:24]} 19. d4 {[%clk 0:02:35]}  Bb4 {[%clk 0:01:21]} 20. Nf4 {[%clk 0:02:27]}  Qd7 {[%clk 0:01:19]} 21. Nd3 {[%clk 0:02:26]}  Bd6 {[%clk 0:01:01]} 22. Bxd6 {[%clk 0:02:14]}  Qxd6 {[%clk 0:01:01]} 23. Nc5 {[%clk 0:02:15]}  Rc6 {[%clk 0:00:36]} 24. Nxb7 {[%clk 0:02:08]}  Qb8 {[%clk 0:00:36]} 25. Nxa5 {[%clk 0:02:08]}  Rxb6 {[%clk 0:00:36]} 26. Nc6 {[%clk 0:01:58]}  Qc7 {[%clk 0:00:24]} 27. Rxb6 {[%clk 0:01:56]}  Qxb6 {[%clk 0:00:25]} 28. Qc2 {[%clk 0:01:56]}  Ra8 {[%clk 0:00:23]} 29. Rb1 {[%clk 0:01:51]}  Qc7 {[%clk 0:00:23]} 30. Rb2 {[%clk 0:01:09]}  g5 {[%clk 0:00:19]} 31. Ne5 {[%clk 0:01:00]}  Qa5 {[%clk 0:00:13]} 32. Qb1 {[%clk 0:00:53]}  Kg7 {[%clk 0:00:12]} 33. Rb7 {[%clk 0:00:46]}  Ra7 {[%clk 0:00:12]} 34. Qg6+ {[%clk 0:00:38]} 1-0


[Site "https://www.chess.com"]

[Event "Titled Tuesday Blitz July 6 2021"]
[White "Khusnutdinov, Rustam"]
[Black "Wagh Suyog"]
[WhiteFideId "13701703"]
[BlackFideId "25071688"]
[WhiteElo "2571"]
[BlackElo "2219"]
[Result "1-0"]
[Round "05"]
[TimeControl "180+1"]
[Date "2021.07.06"]
[WhiteClock "0:00:08"]
[BlackClock "0:00:01"]

1. e4 {[%clk 0:02:31]}  c6 {[%clk 0:02:59]} 2. Nf3 {[%clk 0:02:29]}  d5 {[%clk 0:02:59]} 3. d3 {[%clk 0:02:30]}  g6 {[%clk 0:02:41]} 4. Qe2 {[%clk 0:02:28]}  Bg7 {[%clk 0:02:40]} 5. g3 {[%clk 0:02:27]}  Bg4 {[%clk 0:02:36]} 6. Bg2 {[%clk 0:02:26]}  e6 {[%clk 0:02:31]} 7. O-O {[%clk 0:02:24]}  Ne7 {[%clk 0:02:31]} 8. Nbd2 {[%clk 0:02:24]}  O-O {[%clk 0:02:29]} 9. h3 {[%clk 0:02:21]}  Bxf3 {[%clk 0:02:30]} 10. Nxf3 {[%clk 0:02:22]}  a5 {[%clk 0:02:27]} 11. a4 {[%clk 0:02:20]}  Na6 {[%clk 0:02:27]} 12. d4 {[%clk 0:02:17]}  dxe4 {[%clk 0:02:23]} 13. Qxe4 {[%clk 0:02:18]}  Nd5 {[%clk 0:02:21]} 14. c3 {[%clk 0:02:17]}  Re8 {[%clk 0:02:20]} 15. Bg5 {[%clk 0:02:16]}  Qc7 {[%clk 0:02:19]} 16. Rfe1 {[%clk 0:02:15]}  Nb8 {[%clk 0:02:09]} 17. Re2 {[%clk 0:02:10]}  Nd7 {[%clk 0:02:10]} 18. Rae1 {[%clk 0:02:10]}  Rac8 {[%clk 0:01:48]} 19. Qh4 {[%clk 0:02:05]}  N7b6 {[%clk 0:01:42]} 20. Nh2 {[%clk 0:01:59]}  Nxa4 {[%clk 0:01:25]} 21. Ng4 {[%clk 0:01:58]}  Nab6 {[%clk 0:01:17]} 22. Bh6 {[%clk 0:01:39]}  Qe7 {[%clk 0:01:07]} 23. Bg5 {[%clk 0:01:36]}  f6 {[%clk 0:00:37]} 24. Bc1 {[%clk 0:01:33]}  g5 {[%clk 0:00:28]} 25. Qh5 {[%clk 0:01:33]}  Qf7 {[%clk 0:00:27]} 26. Nh6+ {[%clk 0:01:33]}  Bxh6 {[%clk 0:00:27]} 27. Qxh6 {[%clk 0:01:34]}  Qg6 {[%clk 0:00:23]} 28. Qxg6+ {[%clk 0:01:34]}  hxg6 {[%clk 0:00:24]} 29. Rxe6 {[%clk 0:01:34]}  Rxe6 {[%clk 0:00:21]} 30. Rxe6 {[%clk 0:01:35]}  Kf7 {[%clk 0:00:21]} 31. Re2 {[%clk 0:01:35]}  a4 {[%clk 0:00:21]} 32. Kf1 {[%clk 0:01:33]}  Nc4 {[%clk 0:00:22]} 33. Ke1 {[%clk 0:01:32]}  b5 {[%clk 0:00:22]} 34. Kd1 {[%clk 0:01:31]}  Rd8 {[%clk 0:00:21]} 35. Kc2 {[%clk 0:01:31]}  Nd6 {[%clk 0:00:20]} 36. Re1 {[%clk 0:01:28]}  Rh8 {[%clk 0:00:20]} 37. Rh1 {[%clk 0:01:26]}  Nc4 {[%clk 0:00:17]} 38. Kd3 {[%clk 0:01:25]}  Re8 {[%clk 0:00:17]} 39. Bf3 {[%clk 0:01:16]}  Na5 {[%clk 0:00:13]} 40. h4 {[%clk 0:01:02]}  gxh4 {[%clk 0:00:07]} 41. gxh4 {[%clk 0:01:00]}  Nb3 {[%clk 0:00:06]} 42. Be3 {[%clk 0:01:01]}  Na5 {[%clk 0:00:04]} 43. h5 {[%clk 0:01:00]}  g5 {[%clk 0:00:02]} 44. h6 {[%clk 0:01:00]}  Rh8 {[%clk 0:00:02]} 45. Be4 {[%clk 0:00:56]}  Nc4 {[%clk 0:00:01]} 46. Bc1 {[%clk 0:00:55]}  Nd6 {[%clk 0:00:01]} 47. Bf3 {[%clk 0:00:51]}  Kg6 {[%clk 0:00:02]} 48. Bh5+ {[%clk 0:00:51]}  Kxh6 {[%clk 0:00:02]} 49. Be8+ {[%clk 0:00:51]}  Kg7 {[%clk 0:00:02]} 50. Rxh8 {[%clk 0:00:52]}  Kxh8 {[%clk 0:00:03]} 51. Bxc6 {[%clk 0:00:52]}  Nc7 {[%clk 0:00:04]} 52. f4 {[%clk 0:00:51]}  g4 {[%clk 0:00:03]} 53. f5 {[%clk 0:00:50]}  Kg7 {[%clk 0:00:03]} 54. Bf4 {[%clk 0:00:49]}  Nce8 {[%clk 0:00:02]} 55. Bd7 {[%clk 0:00:45]}  Kf7 {[%clk 0:00:03]} 56. Ke2 {[%clk 0:00:39]}  Ke7 {[%clk 0:00:03]} 57. Bc6 {[%clk 0:00:37]}  Ng7 {[%clk 0:00:03]} 58. Bxd6+ {[%clk 0:00:36]}  Kxd6 {[%clk 0:00:04]} 59. Bxb5 {[%clk 0:00:37]}  Nxf5 {[%clk 0:00:05]} 60. Bxa4 {[%clk 0:00:37]}  Nh4 {[%clk 0:00:05]} 61. Kf2 {[%clk 0:00:36]}  Ng6 {[%clk 0:00:04]} 62. Bc2 {[%clk 0:00:35]}  Ne7 {[%clk 0:00:03]} 63. Kg3 {[%clk 0:00:23]}  f5 {[%clk 0:00:03]} 64. Bd3 {[%clk 0:00:22]}  Kd5 {[%clk 0:00:04]} 65. Kf4 {[%clk 0:00:18]}  Kd6 {[%clk 0:00:02]} 66. c4 {[%clk 0:00:16]}  Ke6 {[%clk 0:00:02]} 67. b4 {[%clk 0:00:15]}  Kf6 {[%clk 0:00:02]} 68. b5 {[%clk 0:00:15]}  Ng6+ {[%clk 0:00:02]} 69. Kg3 {[%clk 0:00:15]}  Kg5 {[%clk 0:00:03]} 70. b6 {[%clk 0:00:16]}  f4+ {[%clk 0:00:03]} 71. Kf2 {[%clk 0:00:16]}  g3+ {[%clk 0:00:03]} 72. Kg2 {[%clk 0:00:14]}  Nh4+ {[%clk 0:00:03]} 73. Kh3 {[%clk 0:00:14]}  g2 {[%clk 0:00:03]} 74. Kh2 {[%clk 0:00:14]}  f3 {[%clk 0:00:03]} 75. Kg1 {[%clk 0:00:08]}  Kg4 {[%clk 0:00:02]} 76. b7 {[%clk 0:00:08]}  Kh3 {[%clk 0:00:02]} 77. b8=Q {[%clk 0:00:08]}  f2+ {[%clk 0:00:01]} 78. Kxf2 {[%clk 0:00:08]} 1-0


[Site "https://www.chess.com"]

[Event "Titled Tuesday Blitz July 6 2021"]
[White "Kim, Sergey"]
[Black "Costachi, Mihnea"]
[WhiteFideId "13700570"]
[BlackFideId "1217518"]
[WhiteElo "2440"]
[BlackElo "2482"]
[Result "0-1"]
[Round "05"]
[TimeControl "180+1"]
[Date "2021.07.06"]
[WhiteClock "0:00:07"]
[BlackClock "0:00:37"]

1. d4 {[%clk 0:03:00]}  a6 {[%clk 0:02:51]} 2. c4 {[%clk 0:03:00]}  g6 {[%clk 0:02:50]} 3. Nc3 {[%clk 0:02:58]}  Bg7 {[%clk 0:02:51]} 4. e4 {[%clk 0:02:58]}  d6 {[%clk 0:02:50]} 5. Nge2 {[%clk 0:02:51]}  Nf6 {[%clk 0:02:45]} 6. Ng3 {[%clk 0:02:50]}  O-O {[%clk 0:02:42]} 7. a4 {[%clk 0:02:48]}  c5 {[%clk 0:02:42]} 8. d5 {[%clk 0:02:48]}  h5 {[%clk 0:02:41]} 9. Be2 {[%clk 0:02:42]}  h4 {[%clk 0:02:41]} 10. Nf1 {[%clk 0:02:42]}  h3 {[%clk 0:02:41]} 11. g4 {[%clk 0:02:41]}  e6 {[%clk 0:02:41]} 12. Ng3 {[%clk 0:02:40]}  exd5 {[%clk 0:02:41]} 13. cxd5 {[%clk 0:02:40]}  Re8 {[%clk 0:02:42]} 14. O-O {[%clk 0:02:35]}  Nbd7 {[%clk 0:02:41]} 15. f4 {[%clk 0:02:32]}  Rb8 {[%clk 0:02:40]} 16. f5 {[%clk 0:02:13]}  b5 {[%clk 0:02:38]} 17. axb5 {[%clk 0:02:11]}  axb5 {[%clk 0:02:39]} 18. g5 {[%clk 0:02:11]}  b4 {[%clk 0:02:29]} 19. gxf6 {[%clk 0:02:07]}  bxc3 {[%clk 0:02:30]} 20. fxg7 {[%clk 0:02:00]}  cxb2 {[%clk 0:02:30]} 21. Bxb2 {[%clk 0:02:00]}  Rxb2 {[%clk 0:02:29]} 22. Qc1 {[%clk 0:02:01]}  Qf6 {[%clk 0:02:23]} 23. fxg6 {[%clk 0:01:57]}  Qd4+ {[%clk 0:02:24]} 24. Kh1 {[%clk 0:01:57]}  fxg6 {[%clk 0:02:20]} 25. Ra4 {[%clk 0:01:37]}  Qxg7 {[%clk 0:02:16]} 26. e5 {[%clk 0:01:33]}  Qxe5 {[%clk 0:02:13]} 27. Re4 {[%clk 0:01:32]}  Rxe2 {[%clk 0:01:58]} 28. Rxe5 {[%clk 0:01:30]}  R2xe5 {[%clk 0:01:58]} 29. Qh6 {[%clk 0:01:20]}  Nf8 {[%clk 0:01:58]} 30. Qf4 {[%clk 0:01:13]}  Bf5 {[%clk 0:01:52]} 31. Kg1 {[%clk 0:01:05]}  Kf7 {[%clk 0:01:40]} 32. Qh6 {[%clk 0:01:02]}  Rxd5 {[%clk 0:01:36]} 33. Qxh3 {[%clk 0:00:52]}  Ree5 {[%clk 0:01:32]} 34. Qh4 {[%clk 0:00:46]}  Ne6 {[%clk 0:01:22]} 35. Qh7+ {[%clk 0:00:39]}  Ng7 {[%clk 0:01:21]} 36. Qh8 {[%clk 0:00:38]}  Re7 {[%clk 0:01:14]} 37. Qh6 {[%clk 0:00:37]}  Rde5 {[%clk 0:01:13]} 38. Qd2 {[%clk 0:00:36]}  d5 {[%clk 0:01:12]} 39. Qa5 {[%clk 0:00:28]}  d4 {[%clk 0:01:11]} 40. Qa2+ {[%clk 0:00:27]}  Kf6 {[%clk 0:01:10]} 41. Qc4 {[%clk 0:00:25]}  Nh5 {[%clk 0:01:04]} 42. Nxf5 {[%clk 0:00:22]}  gxf5 {[%clk 0:01:04]} 43. Qa6+ {[%clk 0:00:22]}  R7e6 {[%clk 0:00:54]} 44. Qc8 {[%clk 0:00:21]}  Ng7 {[%clk 0:00:52]} 45. Qf8+ {[%clk 0:00:20]}  Kg6 {[%clk 0:00:53]} 46. Qd8 {[%clk 0:00:16]}  Re4 {[%clk 0:00:50]} 47. h4 {[%clk 0:00:15]}  Rg4+ {[%clk 0:00:48]} 48. Kh1 {[%clk 0:00:13]}  c4 {[%clk 0:00:48]} 49. Rg1 {[%clk 0:00:11]}  Rxg1+ {[%clk 0:00:47]} 50. Kxg1 {[%clk 0:00:12]}  d3 {[%clk 0:00:48]} 51. Qg5+ {[%clk 0:00:11]}  Kf7 {[%clk 0:00:49]} 52. h5 {[%clk 0:00:10]}  c3 {[%clk 0:00:43]} 53. Kf2 {[%clk 0:00:06]}  d2 {[%clk 0:00:41]} 54. h6 {[%clk 0:00:07]}  Rxh6 {[%clk 0:00:37]} 0-1


[Site "https://www.chess.com"]

[Event "Titled Tuesday Blitz July 6 2021"]
[White "Kobo, Ori"]
[Black "Stojanovski, Sandi"]
[WhiteFideId "2812320"]
[BlackFideId "1403249"]
[WhiteElo "2431"]
[BlackElo "2348"]
[Result "1/2-1/2"]
[Round "05"]
[TimeControl "180+1"]
[Date "2021.07.06"]
[WhiteClock "0:00:05"]
[BlackClock "0:00:09"]

1. e4 {[%clk 0:03:00]}  c5 {[%clk 0:02:59]} 2. Nf3 {[%clk 0:02:50]}  Nc6 {[%clk 0:02:58]} 3. Bb5 {[%clk 0:02:49]}  g6 {[%clk 0:02:58]} 4. O-O {[%clk 0:02:47]}  Bg7 {[%clk 0:02:57]} 5. c3 {[%clk 0:02:45]}  Nf6 {[%clk 0:02:56]} 6. Re1 {[%clk 0:02:46]}  O-O {[%clk 0:02:55]} 7. d4 {[%clk 0:02:46]}  d5 {[%clk 0:02:39]} 8. e5 {[%clk 0:02:46]}  Ne4 {[%clk 0:02:39]} 9. Be3 {[%clk 0:02:36]}  cxd4 {[%clk 0:02:20]} 10. cxd4 {[%clk 0:02:37]}  Qb6 {[%clk 0:02:11]} 11. Bxc6 {[%clk 0:02:34]}  Qxc6 {[%clk 0:02:10]} 12. Nfd2 {[%clk 0:02:27]}  Nxd2 {[%clk 0:01:36]} 13. Qxd2 {[%clk 0:02:26]}  Bf5 {[%clk 0:01:32]} 14. Nc3 {[%clk 0:02:25]}  Rfc8 {[%clk 0:01:31]} 15. Rac1 {[%clk 0:02:22]}  Qd7 {[%clk 0:01:29]} 16. h3 {[%clk 0:02:05]}  Rc6 {[%clk 0:01:23]} 17. g4 {[%clk 0:01:40]}  Be6 {[%clk 0:01:22]} 18. Ne2 {[%clk 0:01:23]}  Rac8 {[%clk 0:01:20]} 19. Rxc6 {[%clk 0:01:23]}  Rxc6 {[%clk 0:01:20]} 20. Nf4 {[%clk 0:01:16]}  Qc8 {[%clk 0:01:09]} 21. Qb4 {[%clk 0:01:03]}  Qc7 {[%clk 0:00:55]} 22. Kg2 {[%clk 0:00:51]}  Bf8 {[%clk 0:00:45]} 23. Qb3 {[%clk 0:00:32]}  Qd7 {[%clk 0:00:40]} 24. Kg3 {[%clk 0:00:24]}  a6 {[%clk 0:00:30]} 25. Nd3 {[%clk 0:00:22]}  b6 {[%clk 0:00:27]} 26. f3 {[%clk 0:00:14]}  a5 {[%clk 0:00:25]} 27. Rc1 {[%clk 0:00:09]}  Rxc1 {[%clk 0:00:23]} 28. Bxc1 {[%clk 0:00:09]}  Qc6 {[%clk 0:00:22]} 29. Be3 {[%clk 0:00:08]}  Bd7 {[%clk 0:00:21]} 30. h4 {[%clk 0:00:03]}  e6 {[%clk 0:00:21]} 31. Qd1 {[%clk 0:00:04]}  Qa4 {[%clk 0:00:19]} 32. Qxa4 {[%clk 0:00:02]}  Bxa4 {[%clk 0:00:18]} 33. b3 {[%clk 0:00:02]}  Bb5 {[%clk 0:00:18]} 34. Nc1 {[%clk 0:00:03]}  Ba3 {[%clk 0:00:17]} 35. Kf2 {[%clk 0:00:02]}  Bxc1 {[%clk 0:00:15]} 36. Bxc1 {[%clk 0:00:03]}  h5 {[%clk 0:00:12]} 37. Ba3 {[%clk 0:00:03]}  Bd3 {[%clk 0:00:11]} 38. Bd6 {[%clk 0:00:03]}  Bb1 {[%clk 0:00:11]} 39. a3 {[%clk 0:00:03]}  Ba2 {[%clk 0:00:10]} 40. b4 {[%clk 0:00:03]}  axb4 {[%clk 0:00:09]} 41. axb4 {[%clk 0:00:04]}  b5 {[%clk 0:00:09]} 42. Kg3 {[%clk 0:00:05]}  Kh7 {[%clk 0:00:09]} 43. Kf4 {[%clk 0:00:05]}  hxg4 {[%clk 0:00:09]} 44. fxg4 {[%clk 0:00:05]}  Bb1 {[%clk 0:00:09]} 45. Kg5 {[%clk 0:00:06]}  Kg7 {[%clk 0:00:08]} 46. Be7 {[%clk 0:00:05]}  Bc2 {[%clk 0:00:07]} 47. Bf6+ {[%clk 0:00:06]}  Kg8 {[%clk 0:00:06]} 48. Be7 {[%clk 0:00:06]}  Kg7 {[%clk 0:00:05]} 49. Bc5 {[%clk 0:00:06]}  Bd3 {[%clk 0:00:05]} 50. h5 {[%clk 0:00:05]}  gxh5 {[%clk 0:00:04]} 51. gxh5 {[%clk 0:00:06]}  Be4 {[%clk 0:00:03]} 52. Bd6 {[%clk 0:00:05]}  Bf5 {[%clk 0:00:03]} 53. Be7 {[%clk 0:00:06]}  Kg8 {[%clk 0:00:03]} 54. Kf6 {[%clk 0:00:05]}  Bh7 {[%clk 0:00:03]} 55. Bc5 {[%clk 0:00:04]}  Bf5 {[%clk 0:00:04]} 56. Bd6 {[%clk 0:00:04]}  Bh7 {[%clk 0:00:05]} 57. Be7 {[%clk 0:00:03]}  Bf5 {[%clk 0:00:06]} 58. Bd8 {[%clk 0:00:03]}  Bh7 {[%clk 0:00:07]} 59. Kg5 {[%clk 0:00:04]}  Bf5 {[%clk 0:00:07]} 60. Kh6 {[%clk 0:00:04]}  Bh7 {[%clk 0:00:07]} 61. Bf6 {[%clk 0:00:04]}  Bd3 {[%clk 0:00:08]} 62. Kg5 {[%clk 0:00:04]}  Be4 {[%clk 0:00:09]} 63. h6 {[%clk 0:00:05]}  Bd3 {[%clk 0:00:09]} 64. Kh4 {[%clk 0:00:05]} 1/2-1/2


[Site "https://www.chess.com"]